Cogmind - Beta 13 @@@ ROGUE MODE // 2024.04.06 @ 15:19:55 Player: Papweer Result: Smashed by cave-in Performance ------------- Evolutions (0) 0 Regions Visited (2) 400 Robots Destroyed (25) 125 Value Destroyed (593) 593 Prototype IDs (2) 40 Alien Tech Used (0) 0 Bonus (0) 0 TOTAL SCORE: 1158 Bonus ------- None Cogmind --------- Core Integrity 0/250 Matter 24/300 Energy 100/100 System Corruption 17% Temperature Cool (0) Movement Core (750) Ox14 Location -10/Mines Parts ------- > --- POWER (1) -------- (None) > --- PROPULSION (2) --- (None) > --- UTILITY (2) ------ High-capacity Storage Unit > --- WEAPON (2) ------- Rocket Launcher > --- INVENTORY (20) --- Ion Engine Light Ion Engine Improved Treads EM Pulse Gun Peak State ------------ > --- POWER ------------ Light Ion Engine > --- PROPULSION ------- Improved Treads Improved Treads > --- UTILITY ---------- High-capacity Storage Unit Signal Interpreter > --- WEAPON ----------- Light Cannon Grenade Launcher > --- INVENTORY -------- Light Ion Engine EM Pulse Gun Assault Rifle Light Cannon [Rating: 9] Favorites ----------- Power Light Ion Engine Engine Light Ion Engine Propulsion Light Treads Treads Light Treads Utility High-capacity Storage Unit Storage High-capacity Storage Unit Processor Signal Interpreter Weapon Light Cannon Energy Gun EM Pulse Gun Ballistic Gun Assault Rifle Ballistic Cannon Light Cannon Launcher Grenade Launcher Build | -11 -10 -10 ------- Run | Yrd Mat Min Slots Evolved . | . . . Power . | . . . Propulsion . | . . . Utility . | . . . Weapon . | . . . Parts Attached 19 | 6 9 4 Power 3 | 1 1 1 Engine 3 | 1 1 1 Core . | . . . Reactor . | . . . Propulsion 5 | 2 2 1 Treads 5 | 2 2 1 Leg . | . . . Wheel . | . . . Hover . | . . . Flight . | . . . Utility 4 | 1 3 . Device . | . . . Storage 3 | 1 2 . Processor 1 | . 1 . Hackware . | . . . Protection . | . . . Artifact . | . . . Weapon 7 | 2 3 2 Energy Gun 1 | 1 . . Energy Cannon . | . . . Ballistic Gun 2 | 1 . 1 Ballistic Cannon 2 | . 2 . Launcher 2 | . 1 1 Special Weapon . | . . . Impact Weapon . | . . . Slashing Weapon . | . . . Piercing Weapon . | . . . Special Melee Weapon . | . . . Unidentified Prototypes . | . . . Parts Lost 11 | . 2 9 Power 3 | . 1 2 Propulsion 3 | . . 3 Utility 1 | . . 1 Weapon 4 | . 1 3 Highest Loss Streak 5 | . 1 5 To Critical Strikes . | . . . Average Slot Usage (%) 82 | . 85 78 Engine 8 | . 7 9 Treads 27 | . 28 27 Storage 14 | . 14 14 Processor 5 | . 7 1 Ballistic Gun 7 | . 4 11 Ballistic Cannon 7 | . 10 3 Launcher 11 | . 12 9 Naked Turns . | . . . Heaviest Build 49 | 12 49 49 Greatest Support 46 | 40 46 46 Greatest Overweight (x) 2 | . 2 2 Average Overweight (x) . | . . . Largest Inventory Capacity 20 | 8 20 20 Average Capacity 17 | 7 16 20 Most Carried 6 | 1 6 5 Average Carried 4 | . 4 3 Final Capacity 20 | 8 20 20 Final Carried 5 | 1 5 4 Class Distribution -------------------- 100% | Mutant Dominant Class ---------------- Mutant | -10/Materials Mutant | -10/Mines Resources | -11 -10 -10 ----------- Run | Yrd Mat Min Matter Collected 790 | 221 281 288 Remotely . | . . . Salvage Created 541 | . 357 184 Parts 39 | . 30 9 Haulers Intercepted . | . . . Recyclers Shooed . | . . . Parts Field Recycled . | . . . Retrieved Matter . | . . . Parts Self-Destructed . | . . . Prevented . | . . . Kills | -11 -10 -10 ------- Run | Yrd Mat Min Combat Hostiles Destroyed 28 | . 10 18 Guns 4 | . . 4 Cannons 14 | . 4 10 AOE 10 | . 6 4 Classes Destroyed 9 | . 6 3 Worker 2 | . 2 . Builder 1 | . 1 . Tunneler 1 | . . 1 Operator 2 | . 2 . Watcher 3 | . 3 . Swarmer 5 | . 2 3 Grunt 10 | . 8 2 Demolisher 1 | . . 1 Assembled 12 | . . 12 Best Kill Streak 12 | . 4 12 Combat Bots Only 12 | . 3 12 Max Kills in Single Turn 2 | . 2 2 Gunslinging . | . . . Exploded 2 | . 1 2 Melee . | . . . Uniques/NPCs Destroyed . | . . . Combat | -11 -10 -10 -------- Run | Yrd Mat Min Hostile Shots Fired 100 | . 46 54 Missed 25 | . 13 12 Damage Taken 1712 | . 431 1281 Core 263 | . 37 226 Absorbed by Shields . | . . . Core Remaining (%) 100 | 100 . . Volleys Fired 71 | . 31 40 Largest 2 | . 2 2 Hottest 70 | . 70 70 Shots Fired 122 | . 50 72 Gun 23 | . 9 14 Cannon 65 | . 25 40 Launcher 34 | . 16 18 Special . | . . . Kinetic 88 | . 34 54 Thermal . | . . . Explosive 34 | . 16 18 Electromagnetic . | . . . Robot Hit Streak 6 | . 5 6 Robot Miss Streak 6 | . 6 4 Penetration Max . | . . . Secondary Targets . | . . . Shots Hit Robots 52 | . 22 30 Core Hits 51 | . 23 28 Critical Kills . | . . . Critical Parts Destroyed . | . . . Critical Strikes 1 | . . 1 Blast 1 | . . 1 Melee Attacks . | . . . Impact . | . . . Slashing . | . . . Piercing . | . . . Sneak Attacks . | . . . Combat Hostiles . | . . . Follow-up Attacks . | . . . Damage Inflicted 1651 | . 773 878 Guns 130 | . 24 106 Cannons 654 | . 200 454 Explosions 867 | . 549 318 Melee . | . . . Ramming . | . . . Kinetic 784 | . 224 560 Thermal . | . . . Explosive 867 | . 549 318 Electromagnetic . | . . . Impact . | . . . Slashing . | . . . Piercing . | . . . Highest Corruption 9 | . . 9 Average Corruption 9 | . . 9 Corruption Purged . | . . . Corruption Blocked . | . . . Effects 24 | . . 24 Message Errors 11 | . . 11 Matter Fused 7 | . . 7 Energy Discharges 3 | . . 3 Data Loss (major) 1 | . . 1 Misfires 1 | . . 1 Alerts 1 | . . 1 Overload Shots . | . . . Overflow Damage 96 | . 19 77 Projectiles 23 | . . 23 Explosions 73 | . 19 54 Melee . | . . . Knockbacks 10 | . 3 7 Impact . | . . . Kinetic 8 | . 3 5 Secondary 2 | . . 2 Self-Inflicted Damage 209 | . 95 114 Shots 9 | . 5 4 Rammed . | . . . Targets Rammed . | . . . Kicked . | . . . Crushed . | . . . Highest Temperature 177 | . 39 177 Average Temperature 65 | . 9 92 Received Heat Transfer 204 | . 126 78 Siege Activations . | . . . Robots Corrupted . | . . . Combat Hostiles . | . . . Parts Fried . | . . . Impact Corruptions . | . . . Robots Melted . | . . . Combat Hostiles . | . . . Parts Melted . | . . . Heat Transferred . | . . . Parts Sabotaged . | . . . Parts Stolen . | . . . Parts Stripped . | . . . Power Chain Reactions . | . . . Alert | -11 -10 -10 ------- Run | Yrd Mat Min Peak Influence 194 | . 194 184 Initial 62 | . . 62 Average 67 | . 82 51 Maximum Alert Level . | . . . Low Security (%) 100 | 100 100 100 Level 1 . | . . . Level 2 . | . . . Level 3 . | . . . Level 4 . | . . . Level 5 . | . . . High Security . | . . . Max Security . | . . . Squads Dispatched 3 | . 3 . Investigation 3 | . 3 . Extermination . | . . . Reinforcement . | . . . Assault . | . . . Garrison . | . . . Intercept . | . . . Searches Triggered . | . . . Construction Impeded . | . . . Haulers Reinforced . | . . . Active Scanning Responses . | . . . Cargo Convoy Interrupts . | . . . Stealth | -11 -10 -10 --------- Run | Yrd Mat Min Distress Signals . | . . . Communications Jammed . | . . . Distress Signals . | . . . Times Spotted 34 | . 16 18 Peak Tracking Total 6 | . 4 6 Tactical Retreats 2 | . 2 . Traps | -11 -10 -10 ------- Run | Yrd Mat Min Traps Triggered 2 | . 2 . Indirectly . | . . . Trap Hack Attempts . | . . . Triggered . | . . . Disarmed . | . . . Reprogrammed . | . . . Reused . | . . . Traps Extracted . | . . . Installed . | . . . Triggered . | . . . Machines | -11 -10 -10 ---------- Run | Yrd Mat Min Machines Disabled 3 | . 2 1 Max in Single Turn 1 | . 1 1 Machines Repaired . | . . . Machines Dismantled . | . . . Machines Sabotaged . | . . . Overloaded Fab Kills . | . . . Hacking | -11 -10 -10 --------- Run | Yrd Mat Min Machines Accessed 5 | . 5 . Terminals 5 | . 5 . Fabricators . | . . . Repair Stations . | . . . Recycling Units . | . . . Scanalyzers . | . . . Garrison Access . | . . . Total Hacks 12 | . 12 . Successful 8 | . 8 . Failed 4 | . 4 . Catastrophic . | . . . Database Lockouts . | . . . Manual . | . . . Terminals 12 | . 12 . Fabricators . | . . . Repair Stations . | . . . Recycling Units . | . . . Scanalyzers . | . . . Garrison Access . | . . . Terminal Hacks 8 | . 8 . Prototype ID Bank 1 | . 1 . Alert Level 1 | . 1 . Dispatch Records 2 | . 2 . Maintenance Status 1 | . 1 . Hauler Manifests 1 | . 1 . Registered Components 1 | . 1 . Zone Layout 1 | . 1 . Fabricator Hacks . | . . . Repair Station Hacks . | . . . Recycling Unit Hacks . | . . . Scanalyzer . | . . . Garrison Access Hacks . | . . . Unauthorized Hacks . | . . . Terminals . | . . . Fabricators . | . . . Repair Stations . | . . . Recycling Units . | . . . Scanalyzers . | . . . Garrison Access . | . . . Data Cores Recovered 1 | . 1 . Used . | . . . Hacking Detections 3 | . 3 . Full Trace Events 1 | . 1 . Feedback Events . | . . . Feedback Blocked . | . . . Robot Schematics Acquired . | . . . Robots Built . | . . . Authchips . | . . . Time . | . . . Total Robot Build Rating . | . . . Part Schematics Acquired . | . . . Parts Built . | . . . Authchips . | . . . Time . | . . . Total Part Build Rating . | . . . Parts Repaired . | . . . Time . | . . . Parts Recycled . | . . . Recycled Matter . | . . . Retrieved Matter . | . . . Retrieved Components . | . . . Parts Scanalyzed . | . . . Part Schematics Acquired . | . . . Parts Damaged . | . . . Bothacking | -11 -10 -10 ------------ Run | Yrd Mat Min Used RIF Installer . | . . . Robots Hacked . | . . . Non-combat . | . . . Combat . | . . . Robot Hacks Applied . | . . . Relay Couplers Released . | . . . Fabnet Peak Effective % . | . . . Robots Rewired . | . . . Allies Hacked . | . . . Hacks Repelled . | . . . Allies | -11 -10 -10 -------- Run | Yrd Mat Min Total Allies . | . . . Largest Group . | . . . Highest-Rated Group . | . . . Highest-Rated Ally . | . . . Total Orders . | . . . Ally Attacks . | . . . Total Damage . | . . . Kills . | . . . Allies Corrupted . | . . . Allies Melted . | . . . Intel | -11 -10 -10 ------- Run | Yrd Mat Min Robot Analysis Total . | . . . Derelict Logs Recovered . | . . . Drone Launches . | . . . Drone Recoveries . | . . . Exploration | -11 -10 -10 ------------- Run | Yrd Mat Min Turns Passed 1959 | 64 1141 754 Spaces Moved 836 | 36 494 306 Core 2 | 2 . . Treads 834 | 34 494 306 Legs . | . . . Wheels . | . . . Hover . | . . . Flight . | . . . Fastest Speed 50 | 50 160 160 Average Speed 207 | 153 210 208 Slowest Speed 320 | 160 320 320 Overloaded Moves . | . . . Propulsion Burnouts . | . . . Robots Hopped . | . . . Cave-ins Triggered 1 | . . 1 Exploration Rate (%) 55 | 4 94 67 Regions Visited 2 Branch Regions 1 Pre-discovered Areas . | . . . Known Exits Taken 1 | . 1 . Unknown Exits Taken 1 | 1 . . Scrap Searched 1 | . . 1 Spaces Dug 87 | . . 87 Terrain Destroyed 268 | . 102 166 Melee . | . . . Projectile . | . . . AOE 268 | . 102 166 Terrain Rammed . | . . . Walls Destroyed . | . . . Machines Disabled . | . . . Actions | -11 -10 -10 --------- Run | Yrd Mat Min Total 942 | 42 547 353 Wait 3 | . 3 . Move 834 | 35 493 306 Hop . | . . . Pick Up 9 | 1 5 3 Fast Attach 12 | 6 6 . Attach 7 | . 3 4 Detach 2 | . 2 . Swap . | . . . Drop 4 | . 4 . Fire 71 | . 31 40 Melee . | . . . Ram . | . . . Kick . | . . . Crush . | . . . Escape Stasis . | . . . Rewire . | . . . Trap . | . . . Miscellaneous . | . . . Route ------- -11/Scrapyard -10/Materials (discovered 5 exits: *Mat x3 / *Min x2) -10/Mines (discovered 1 exit: *Mat) History --------- Turn | Location | Event 17 | -11/Scrapyard | Discovered new exit (range 16) 65 | -11/Scrapyard | Entered Materials 276 | -10/Materials | Discovered new exit (range 5) 318 | -10/Materials | Build established: Mutant 355 | -10/Materials | Discovered new exit (range 15) 728 | -10/Materials | Discovered new exit (range 16) 848 | -10/Materials | Identified exit to Materials 946 | -10/Materials | Discovered new exit (range 12) 970 | -10/Materials | Identified exit to Mines 1013 | -10/Materials | Discovered exit to Materials (range 8) 1206 | -10/Materials | Entered Mines 1207 | -10/Mines | Met a Derelict bent on vengeance 1236 | -10/Mines | Assembled infested the area 1340 | -10/Mines | Destroyed 12 combat bots 1340 | -10/Mines | Discovered exit to Materials (range 11) 1348 | -10/Mines | Lost 5 parts (1p1n1u2w) 1466 | -10/Mines | Received a Rocket Launcher from a helpful Derelict 1564 | -10/Mines | Core integrity fell below 50% 1961 | -10/Mines | Crushed by falling debris 1961 | -10/Mines | Smashed by cave-in Last Messages --------------- 01788_ QGHBZ0JCPQ AHIUN%AK&X#BC0ZVF|H#NG%H 01805_ Acquired 29 matter. 01813_ Acquired 1 matter. 01818_ System corrupted: Energy discharge (-45). 01838_ NPS:KUVTLHC%0VL79HR#FTHZY1X TAK MP#<%AZA 01933_ Assault Rifle destroyed. 01933_ Destroyed Assault Rifle. 01933_ Imp. Treads destroyed. 01933_ Destroyed Imp. Treads. 01933_ Laser Drill disabled. 01943_ System corrupted: Matter fused (-7). 01943_ The unstable cave ceiling collapses. 01961_ Crushed by falling debris. 01961_ Imp. Treads destroyed. 01961_ System corrupted by crushing effect (+5). 01961_ Lgt. Ion Engine destroyed. 01961_ System corrupted by crushing effect (+3). Map ----- +----------------------------------------------------+ | | | | | | | | | | | | | | | | | | | | | | | | | | | | | | | | | | | | | ????????????????????????????????????????????? | | ????????????????????????????????????????????? | | ???????????????####????##?##################? | | ???????????????# #### ## """ """ """ #? | | ?????????????# # # # """ """ #? | | ?????????????# """ """ #? | | ?????????????# #? | | ?????????????# # @ #? | | ?????????????# #? | | ??????????##### #? | | ?????????? ### # #? | | ??????????# #?## ####### ###### ########? | | ????????### #??###???????####????# #???????? | | ????????# #????????????????????# #???????? | | ????????# #" #????????????????????# #???????? | | ????????# ##?????????########### #???????? | | ????????# #?????????# #???????? | | ????????## ##?######## ##########???????? | | ?????????# ### ## #????????????????? | | ?????????## # ####??##?????????? | | ??????????## ### #?????????? | | ???????????##### #?????????? | | ???????????????### ## #?????????? | | ?????????????????# # # # #?????????? | | ?????????????????# # ## ### #?#?????????? | | ?????????????????# #?####? # #?????????? | | ?????????????????# ##??????# #?????????? | | ?????????????????# #???????# ###?????????? | | ?????????????????# #??????## ####?????????? | | ?????????????????# #??????# ##???###??? | | ??????############ #?????## ##?# ##?? | | ###???#= #?##### ## #?? | +----------------------------------------------------+ Best States ------------- Heat Dissipation 25 Energy Generation 10 Energy Capacity 125 Matter Stores 261 Matter Capacity 300 Sight Range 16 Terrain Scan Density 10 Evasion (%) 40 Recoil Reduction 2 Item Schematics ----------------- None Robot Schematics ------------------ None Fabricated ------------ Nothing Alien Tech Used ----------------- None Achievements -------------- Maybe Next Time I'll Detach My Launcher Challenges ------------ None Game ------ Seed HackingMissileScreen Manual? 0 Play Time 00:15:38 Cumulative 3.1 hours Start 2024.04.06 @ 15:03:57 End 2024.04.06 @ 15:19:55 Sessions 1 Manual Loads 0 Difficulty Rogue Special Mode None Game No. 7 Rogue 5 Adventurer 2 Explorer 0 Win Type - Total 0 Types 0/0/0/0/0/0/0/0/0 Lore% 2 Gallery% 4 Achievement% 7 Wizard Run 0 Options --------- Layout 2 ASCII 0 Keyboard 0 Movement Mouse Keybinds 0 Fullscreen 2 Font 24/Terminus Map View 50x44 Zoom Use 0% Tactical HUD 1 Map Filters NONE Filters NONE Steam 0 RUN: 0465ff8c-99ae-40c0-b0b0-8e6f2711f870